bitfinex-derivatives/quotes_BTCF0:USTF0_20250129
["timestamp","ask_amount","ask_price","bid_price","bid_amount"]
[1738188019997,0.53013568,103770.0,103760.0,0.315962]
[1738188020201,0.72287868,103770.0,103760.0,0.1232]
[1738188020392,0.72287868,103770.0,103750.0,0.19292097]
[1738188020592,0.11300835,103760.0,103750.0,0.25212097]
[1738188020996,0.006,103760.0,103750.0,0.25212097]
[1738188021892,0.015,103760.0,103750.0,0.25212097]
[1738188022295,0.1288,103760.0,103750.0,0.25212097]
[1738188022498,0.1228,103760.0,103750.0,0.25212097]
[1738188023403,0.667362,103760.0,103750.0,0.25212097]
[1738188023702,0.667362,103760.0,103750.0,0.25312097]
[1738188023902,0.668362,103760.0,103750.0,0.25312097]
[1738188024098,0.1148,103760.0,103750.0,0.25312097]
[1738188024302,0.1148,103760.0,103750.0,0.72092932]
[1738188024503,0.1148,103760.0,103750.0,0.35912932]
[1738188024694,0.1228,103760.0,103750.0,0.25212097]
[1738188025106,0.4836,103760.0,103750.0,0.25212097]
[1738188025709,0.4876,103760.0,103750.0,0.25212097]
[1738188026400,0.680362,103760.0,103750.0,0.25212097]
[1738188026803,0.680362,103760.0,103750.0,0.05934397]
[1738188027506,0.740602,103760.0,103750.0,0.05934397]
[1738188028604,0.882852,103760.0,103750.0,0.05934397]
[1738188029400,0.882852,103760.0,103740.0,0.18314049]
[1738188029601,0.882852,103760.0,103740.0,0.20314049]
[1738188029802,0.69009,103760.0,103740.0,0.20314049]
[1738188030015,0.19278,103750.0,103740.0,0.20314049]
[1738188030213,0.19278,103750.0,103740.0,0.1332266]
[1738188030810,0.55358,103750.0,103740.0,0.03]
[1738188031517,0.66158835,103750.0,103740.0,0.03]
[1738188031717,0.192809,103740.0,103720.0,0.66208244]
[1738188032013,0.192809,103740.0,103720.0,0.76208244]
[1738188032515,0.192809,103740.0,103730.0,0.1831]
[1738188032723,0.66061735,103740.0,103730.0,0.1931]
[1738188033022,0.555609,103740.0,103730.0,0.0484631]
[1738188033226,0.192817,103730.0,103720.0,0.00144609]
[1738188033521,0.613777,103730.0,103720.0,0.00144609]
[1738188034115,0.676877,103730.0,103720.0,0.00144609]
[1738188034314,0.78388535,103730.0,103720.0,0.00144609]
[1738188034722,0.78488535,103730.0,103720.0,0.00144609]
[1738188035713,0.84718535,103730.0,103720.0,0.00144609]
[1738188036317,0.192855,103710.0,103700.0,0.835463]
[1738188036633,0.192855,103710.0,103700.0,0.975463]
[1738188037829,0.193855,103710.0,103700.0,0.975463]
[1738188038628,0.194855,103710.0,103700.0,0.975463]
[1738188038827,0.194855,103710.0,103700.0,1.08247135]
[1738188040420,0.002,103710.0,103700.0,1.08247135]
[1738188040624,0.19925851,103720.0,103710.0,0.192855]
[1738188040826,0.19925851,103720.0,103710.0,0.69066335]
[1738188041227,0.39209451,103720.0,103710.0,0.222855]
[1738188041828,0.39309451,103720.0,103710.0,0.222855]
[1738188042427,0.39309451,103720.0,103710.0,0.583655]
[1738188042732,0.39309451,103720.0,103710.0,0.222855]
[1738188042934,0.19497997,103720.0,103710.0,0.223855]
[1738188045227,0.66278832,103720.0,103710.0,0.031]
[1738188045634,0.72138832,103720.0,103710.0,0.031]
[1738188046237,0.86363832,103720.0,103710.0,0.031]
[1738188047633,0.192855,103710.0,103700.0,0.1]
[1738188047838,0.78214335,103710.0,103700.0,0.1]
[1738188048926,0.78314335,103710.0,103700.0,0.1]
[1738188049124,0.78414335,103710.0,103700.0,0.101]
[1738188049527,0.615535,103710.0,103700.0,0.101]
[1738188049735,0.72254335,103710.0,103700.0,0.101]
[1738188051030,0.89324335,103710.0,103700.0,0.101]
[1738188052038,0.90283555,103710.0,103700.0,0.101]
[1738188054234,0.84295555,103710.0,103700.0,0.293873]
[1738188054436,0.4349072,103710.0,103700.0,0.293873]
[1738188054935,0.2642072,103710.0,103700.0,0.353073]
[1738188055127,0.37121555,103710.0,103700.0,0.414273]
[1738188055331,0.31145555,103710.0,103700.0,0.2314]
[1738188055541,0.37117555,103710.0,103700.0,0.2314]
[1738188055942,0.2641672,103710.0,103700.0,0.424273]
[1738188056334,0.2044472,103710.0,103700.0,0.424273]
[1738188056542,0.2641672,103710.0,103700.0,0.424273]
[1738188056839,0.37117555,103710.0,103700.0,0.1702]
[1738188057541,0.37117555,103710.0,103700.0,0.363073]
[1738188058339,0.37117555,103710.0,103700.0,0.1702]
[1738188058542,0.54187555,103710.0,103700.0,0.1702]
[1738188059337,0.54187555,103710.0,103700.0,0.1602]
[1738188059647,0.90267555,103710.0,103700.0,0.1602]
[1738188059943,0.90267555,103710.0,103700.0,0.101]
[1738188060142,0.96117555,103710.0,103700.0,0.101]
[1738188061839,0.79047555,103710.0,103700.0,0.101]
[1738188062041,0.8974839,103710.0,103700.0,0.101]
[1738188062439,0.8974839,103710.0,103700.0,0.09985603]
[1738188062638,0.8974839,103710.0,103700.0,0.07988153]
[1738188062844,0.19291,103680.0,103670.0,0.06304678]
[1738188063044,0.72031835,103680.0,103670.0,0.15144678]
[1738188063247,0.8273267,103680.0,103670.0,0.15]
[1738188063446,0.72031835,103680.0,103670.0,0.15]
[1738188063651,0.192929,103670.0,103660.0,0.1223]
[1738188063843,0.29993735,103670.0,103660.0,0.1323]
[1738188064743,0.66173735,103670.0,103660.0,0.01]
[1738188064948,0.78303735,103670.0,103660.0,0.01]
[1738188065549,0.78303735,103670.0,103650.0,0.19296]
[1738188065749,0.10700835,103660.0,103650.0,0.19296]
[1738188066651,0.78518203,103670.0,103650.0,0.19296]
[1738188067035,0.29995635,103660.0,103650.0,0.19296]
[1738188067447,0.30095635,103660.0,103650.0,0.19296]
[1738188067749,0.193948,103660.0,103650.0,0.19296]
[1738188068049,0.194948,103660.0,103650.0,0.19296]
[1738188068244,0.30195635,103660.0,103650.0,0.19296]
[1738188068549,0.194948,103660.0,103650.0,0.19296]
[1738188068950,0.30195635,103660.0,103650.0,0.19296]
[1738188069151,0.192966,103650.0,103640.0,0.192982]
[1738188069451,0.29997435,103650.0,103640.0,0.01]
[1738188069651,0.35945435,103650.0,103640.0,0.01]
[1738188070952,0.35945435,103650.0,103630.0,0.69773529]
[1738188071144,0.35945435,103650.0,103630.0,0.71773529]
[1738188071944,0.36045435,103650.0,103630.0,0.71773529]
[1738188072347,0.61831803,103650.0,103630.0,0.71773529]
[1738188074147,0.45182968,103650.0,103640.0,0.192985]
[1738188074444,0.25886368,103650.0,103640.0,0.67079335]
[1738188074644,0.2682842,103650.0,103640.0,0.56402985]
[1738188076449,0.4612502,103650.0,103640.0,0.56402985]
[1738188079165,0.40407794,103650.0,103640.0,0.56402985]
[1738188079350,0.21111194,103650.0,103640.0,0.56402985]
[1738188080246,0.51108629,103650.0,103640.0,0.56402985]
[1738188081551,0.51108629,103650.0,103640.0,0.20322985]
[1738188082154,0.51108629,103650.0,103640.0,0.01024485]
[1738188082554,0.57032629,103650.0,103640.0,0.01024485]
[1738188083159,0.48471161,103650.0,103640.0,0.01024485]
[1738188087554,0.51342181,103650.0,103640.0,0.01024485]
[1738188087751,0.192985,103640.0,103630.0,0.14394729]
[1738188087954,0.46780835,103640.0,103610.0,0.193039]
[1738188088147,0.193041,103610.0,103600.0,0.2]
[1738188088462,0.30004935,103610.0,103600.0,0.453059]
[1738188088864,0.30004935,103610.0,103600.0,0.26]
[1738188089352,0.42006468,103620.0,103600.0,0.92086735]
[1738188089561,0.42006468,103620.0,103600.0,0.26]
[1738188089562,0.193041,103610.0,103600.0,0.26]
[1738188090058,0.193041,103610.0,103600.0,0.6208]
[1738188090261,0.193041,103610.0,103600.0,0.813859]
[1738188090657,0.30004935,103610.0,103600.0,0.6208]
[1738188090960,0.30104935,103610.0,103600.0,0.6208]
[1738188091170,0.55900666,103610.0,103600.0,0.6208]
[1738188091654,0.55900666,103610.0,103600.0,0.813859]
[1738188092252,0.45199831,103610.0,103600.0,0.813859]
[1738188092854,0.46165,103610.0,103600.0,0.813859]
[1738188093363,0.46165,103610.0,103600.0,0.870259]
[1738188094359,0.12582206,103610.0,103600.0,0.97726735]
[1738188095466,0.33596362,103620.0,103600.0,0.97726735]
[1738188095467,0.14293162,103620.0,103600.0,1.08420835]
[1738188095663,0.17134433,103630.0,103620.0,0.193022]
[1738188095861,0.00076,103650.0,103640.0,0.192968]
[1738188096059,0.29996935,103660.0,103650.0,0.192966]
[1738188096265,0.29996935,103660.0,103650.0,0.553766]
[1738188096457,0.29996935,103660.0,103650.0,0.563766]
[1738188096761,0.30937713,103660.0,103650.0,0.3708]
[1738188097271,0.36833713,103660.0,103650.0,0.01]
[1738188097469,0.72913713,103660.0,103650.0,0.01]
[1738188097875,0.73713713,103660.0,103650.0,0.01]
[1738188098468,0.73713713,103660.0,103650.0,0.202966]
[1738188098469,0.68317713,103660.0,103650.0,0.202966]
[1738188098864,0.68317713,103660.0,103650.0,0.01]
[1738188099779,0.68317713,103660.0,103640.0,0.61472268]
[1738188100070,0.68317713,103660.0,103640.0,0.62472268]
[1738188100270,0.68317713,103660.0,103650.0,0.192966]
[1738188100862,0.67117713,103660.0,103650.0,0.192966]
[1738188101164,0.67117713,103660.0,103640.0,0.61472068]
[1738188101363,0.67117713,103660.0,103640.0,0.62472068]
[1738188101565,0.67817713,103660.0,103640.0,0.62472068]
[1738188101771,0.192966,103650.0,103640.0,0.26392068]
[1738188103278,0.192966,103650.0,103640.0,0.62472068]
[1738188104680,0.193966,103650.0,103640.0,0.62472068]
[1738188105066,0.193966,103650.0,103640.0,0.26492068]
[1738188105974,0.27968403,103650.0,103640.0,0.26492068]
[1738188106471,0.27968403,103650.0,103640.0,0.01114468]
[1738188106684,0.33658403,103650.0,103640.0,0.01114468]
[1738188107674,0.44359238,103650.0,103640.0,0.01114468]
[1738188107867,0.33658403,103650.0,103640.0,0.01114468]
[1738188108069,0.69738403,103650.0,103640.0,0.01114468]
[1738188108271,0.33658403,103650.0,103640.0,0.01114468]
[1738188108575,0.69738403,103650.0,103640.0,0.01114468]
[1738188109473,0.611666,103650.0,103640.0,0.01114468]
[1738188109774,0.611666,103650.0,103640.0,0.20412968]
[1738188110277,0.0579,103650.0,103640.0,0.20412968]
[1738188110574,0.250866,103650.0,103640.0,0.56492968]
[1738188110765,0.193966,103650.0,103640.0,0.56492968]
[1738188111775,0.193966,103650.0,103640.0,0.20412968]
[1738188114175,0.193966,103650.0,103640.0,0.01114468]
[1738188114479,0.614866,103650.0,103640.0,0.01114468]
[1738188115072,0.72187435,103650.0,103640.0,0.01114468]
[1738188115390,0.78657435,103650.0,103640.0,0.01114468]
[1738188117878,0.192985,103640.0,103610.0,0.17433318]
[1738188118079,0.553822,103620.0,103610.0,0.05046312]
[1738188118573,0.613922,103620.0,103610.0,0.05046312]
[1738188120378,0.72093035,103620.0,103610.0,0.05146312]
[1738188120784,0.72193035,103620.0,103610.0,0.05746312]
[1738188120981,0.72193035,103620.0,103610.0,0.05646312]
[1738188121181,0.72293035,103620.0,103610.0,0.05846312]
[1738188121682,0.72293035,103620.0,103610.0,0.00944754]
[1738188121878,0.195022,103620.0,103610.0,0.56328854]
[1738188122084,0.195022,103620.0,103610.0,0.63618854]
[1738188122379,0.195022,103620.0,103610.0,0.69968854]
[1738188122975,0.30203035,103620.0,103610.0,0.38024754]
[1738188123284,0.002,103620.0,103610.0,0.57328854]
[1738188123479,0.002,103620.0,103610.0,0.68029689]
[1738188124190,0.002,103620.0,103610.0,0.57328854]
[1738188124684,0.195022,103620.0,103610.0,0.57328854]
[1738188125976,0.195022,103620.0,103610.0,0.68029689]
[1738188126176,0.002,103620.0,103610.0,0.68029689]
[1738188127890,0.002,103620.0,103610.0,0.57328854]
[1738188128085,0.195022,103620.0,103610.0,0.57328854]
[1738188128897,0.195022,103620.0,103610.0,0.68029689]
[1738188129090,0.195022,103620.0,103610.0,0.57328854]
[1738188132188,0.002,103620.0,103610.0,0.68029689]
[1738188133594,0.002,103620.0,103610.0,0.67884935]
[1738188134588,0.14278085,103650.0,103610.0,0.48580835]
[1738188134780,0.192974,103650.0,103640.0,0.553779]
[1738188134983,0.192974,103650.0,103640.0,0.563779]
[1738188135193,0.2027389,103650.0,103640.0,0.563779]
[1738188136686,0.2037389,103650.0,103640.0,0.569779]
[1738188136886,0.2037389,103650.0,103640.0,0.570779]
[1738188137286,0.0107649,103650.0,103640.0,0.570779]
[1738188137690,0.0107649,103650.0,103640.0,0.67778735]
[1738188137897,0.001,103650.0,103640.0,0.67778735]
[1738188138397,0.1713896,103660.0,103650.0,0.192966]
[1738188138586,0.1713896,103660.0,103650.0,0.708766]
[1738188138992,0.1713896,103660.0,103650.0,0.81577435]
[1738188139384,0.1713896,103660.0,103650.0,0.708766]
[1738188139589,0.31934313,103660.0,103650.0,0.81577435]
[1738188139993,0.51229013,103660.0,103650.0,0.222966]
[1738188140194,0.51229013,103660.0,103650.0,0.223966]
[1738188140195,0.52129013,103660.0,103650.0,0.223966]
[1738188141196,0.52129013,103660.0,103650.0,0.584766]
[1738188141403,0.32834313,103660.0,103650.0,0.69177435]
[1738188144193,0.01414468,103660.0,103650.0,0.69177435]
[1738188145898,0.20709168,103660.0,103650.0,0.584766]
[1738188147195,0.20709168,103660.0,103650.0,0.69177435]
[1738188149403,0.20709168,103660.0,103650.0,0.33097435]
[1738188149904,0.20709168,103660.0,103650.0,0.69177435]
[1738188164005,0.20709168,103660.0,103650.0,0.584766]
[1738188164204,0.20709168,103660.0,103650.0,0.69177435]
[1738188164205,0.26619168,103660.0,103650.0,0.69177435]
[1738188164402,0.38049953,103660.0,103650.0,0.69177435]
[1738188168819,0.40914521,103660.0,103650.0,0.69177435]
[1738188171327,0.15709821,103660.0,103650.0,0.69177435]
[1738188175920,0.35004621,103660.0,103650.0,0.69177435]
[1738188178229,0.15709821,103660.0,103650.0,0.69177435]
[1738188178825,0.35004621,103660.0,103650.0,0.69177435]
[1738188179726,0.15709821,103660.0,103650.0,0.69177435]
[1738188180615,0.04935721,103660.0,103650.0,0.7987827]
[1738188180918,0.42801385,103690.0,103650.0,0.7987827]
[1738188180919,0.42801385,103690.0,103680.0,0.19291]
[1738188181115,0.254658,103710.0,103700.0,0.192873]
[1738188181314,0.254658,103710.0,103700.0,0.67068135]
[1738188182127,0.254658,103710.0,103700.0,0.563673]
[1738188182339,0.254658,103710.0,103690.0,0.00014468]
[1738188182340,0.65182988,103710.0,103690.0,0.00014468]
[1738188182516,0.66068135,103700.0,103690.0,0.00014468]
[1738188183134,0.610993,103700.0,103690.0,0.00014468]
[1738188183325,0.192873,103700.0,103690.0,0.67082803]
[1738188183518,0.27887918,103710.0,103690.0,0.54075303]
[1738188183718,0.27887918,103710.0,103700.0,0.192873]
[1738188183924,0.26987918,103710.0,103700.0,0.192873]
[1738188184131,0.38430448,103710.0,103700.0,0.192873]
[1738188184628,0.39330448,103710.0,103700.0,0.192873]
[1738188185020,0.39830448,103710.0,103700.0,0.30088135]
[1738188185222,0.39830448,103710.0,103700.0,0.30188135]
[1738188185435,0.39830448,103710.0,103700.0,0.194873]
[1738188187933,0.28387918,103710.0,103700.0,0.194873]
[1738188190933,0.22207918,103710.0,103700.0,0.66268135]
[1738188191133,0.22207918,103710.0,103700.0,0.67268135]
[1738188191134,0.02921318,103710.0,103700.0,0.67268135]
[1738188191837,0.014,103710.0,103700.0,0.67268135]
[1738188195142,0.014,103710.0,103700.0,0.68743939]
[1738188195845,0.014,103710.0,103700.0,0.79444774]
[1738188196033,0.00014468,103720.0,103710.0,0.192855]
[1738188196342,0.00014468,103720.0,103710.0,1.0983717]
[1738188197137,0.00114468,103720.0,103710.0,1.1043717]
[1738188197341,0.00100001,103720.0,103710.0,1.1133717]
[1738188198344,0.3695303,103740.0,103730.0,0.29982535]
[1738188198538,0.38447643,103740.0,103730.0,0.67062535]
[1738188198836,0.38447643,103740.0,103730.0,0.563617]
[1738188199839,0.38447643,103740.0,103730.0,0.209817]
[1738188200145,0.27005113,103740.0,103730.0,0.210817]
[1738188200639,0.37705948,103740.0,103730.0,0.018]
[1738188200944,0.192817,103730.0,103720.0,0.00014468]
[1738188201238,0.192817,103730.0,103720.0,0.19298068]
[1738188202146,0.193817,103730.0,103720.0,0.20998068]
[1738188202843,0.193817,103730.0,103720.0,0.21898068]
[1738188203145,0.193817,103730.0,103720.0,0.32598903]
[1738188203739,0.193817,103730.0,103720.0,0.21898068]
[1738188204947,0.193817,103730.0,103720.0,0.32598903]
[1738188205835,0.193817,103730.0,103720.0,0.21898068]
[1738188210747,0.30082535,103730.0,103720.0,0.02614468]
[1738188210952,0.72862535,103730.0,103720.0,0.02614468]
[1738188211254,0.260817,103730.0,103720.0,0.02614468]
[1738188211458,0.3752423,103730.0,103720.0,0.02614468]
[1738188211753,0.3752423,103730.0,103720.0,0.21898068]
[1738188211942,0.4416423,103730.0,103720.0,0.21898068]
[1738188212652,0.54865065,103730.0,103720.0,0.21898068]
[1738188213041,0.4416423,103730.0,103720.0,0.21898068]
[1738188219255,0.1154253,103730.0,103720.0,0.68678903]
[1738188219446,0.32806795,103740.0,103730.0,0.192817]
[1738188219447,0.17055335,103740.0,103730.0,0.192817]
[1738188219757,0.17055335,103740.0,103730.0,0.82762535]
[1738188220952,0.17055335,103740.0,103730.0,0.82962535]
[1738188222057,0.17155335,103740.0,103730.0,0.83662535]
[1738188222247,0.17155335,103740.0,103730.0,0.9436337]
[1738188222452,0.00014468,103750.0,103740.0,0.4068157]
[1738188222646,0.00014468,103750.0,103740.0,0.83060735]
[1738188222846,0.00014468,103750.0,103740.0,0.9376157]
[1738188223043,0.00014468,103750.0,103740.0,0.83060735]
[1738188223747,0.00714468,103750.0,103740.0,0.83160735]
[1738188223947,0.01114468,103750.0,103740.0,0.83160735]
[1738188227249,0.01114468,103750.0,103740.0,0.96380735]
[1738188230159,0.69160206,103780.0,103740.0,0.8780167]
[1738188230367,0.52353306,103780.0,103770.0,0.29975135]
[1738188230658,0.52353306,103780.0,103770.0,0.202743]
[1738188230859,0.537167,103780.0,103770.0,0.202743]
[1738188231051,0.537167,103780.0,103770.0,0.563543]
[1738188231360,0.537167,103780.0,103770.0,0.7775597]
[1738188231361,0.14980206,103780.0,103770.0,0.7775597]
[1738188231557,0.15580206,103780.0,103770.0,0.8460597]
[1738188232161,0.15580206,103780.0,103770.0,0.73905135]
[1738188232564,0.14680206,103780.0,103770.0,0.73905135]
[1738188232867,0.15280206,103780.0,103770.0,0.74005135]
[1738188234168,0.007,103780.0,103770.0,0.74705135]
[1738188234667,0.001,103780.0,103770.0,0.75505135]
[1738188235063,0.001,103780.0,103770.0,0.8620597]
[1738188238162,0.001,103780.0,103770.0,0.75505135]
[1738188239467,0.001,103780.0,103770.0,0.8620597]
[1738188239966,0.001,103780.0,103770.0,0.75505135]
[1738188241556,0.001,103780.0,103770.0,0.8620597]
[1738188241761,0.00014468,103790.0,103780.0,0.192725]
[1738188241962,0.00014468,103790.0,103780.0,0.99903335]
[1738188243071,0.00014468,103790.0,103780.0,1.00103335]
[1738188244169,0.00014468,103790.0,103780.0,1.00803335]
[1738188246979,6.8e-07,103790.0,103780.0,1.1150417]
[1738188247275,6.8e-07,103790.0,103780.0,1.00803335]
[1738188247780,6.8e-07,103790.0,103780.0,1.1150417]
[1738188248870,0.1,103800.0,103790.0,0.192706]
[1738188249067,0.1,103800.0,103790.0,1.0429227]
[1738188250474,0.103,103800.0,103790.0,1.0429227]
[1738188250669,0.00014468,103810.0,103790.0,0.8502167]
[1738188250979,0.00014468,103810.0,103800.0,0.9024037]
[1738188251172,0.00014468,103810.0,103800.0,0.84849535]
[1738188251883,0.00014468,103810.0,103800.0,0.78049535]
[1738188252178,0.26001368,103810.0,103800.0,0.673487]
[1738188253579,0.26001368,103810.0,103800.0,0.312687]
[1738188253990,0.26301368,103810.0,103800.0,0.312687]
[1738188255382,0.26301368,103810.0,103800.0,0.41969535]
[1738188260178,0.34829171,103810.0,103800.0,0.41969535]
[1738188263683,0.26301368,103810.0,103800.0,0.41969535]
[1738188264083,0.26301368,103810.0,103800.0,0.78049535]
[1738188266592,0.26301368,103810.0,103800.0,0.41969535]
[1738188269013,0.00314468,103810.0,103800.0,0.8875037]
[1738188269217,0.00314468,103810.0,103800.0,1.0134037]
[1738188273708,0.00314468,103810.0,103800.0,1.41625016]
[1738188274418,0.00314468,103810.0,103800.0,1.42947877]
[1738188275305,0.08565821,103820.0,103810.0,0.192669]
[1738188275505,0.08565821,103820.0,103810.0,0.94497735]
[1738188276515,0.08965821,103820.0,103810.0,0.94597735]
[1738188277315,0.08865821,103820.0,103810.0,0.94597735]
[1738188278709,0.003,103820.0,103810.0,1.17557748]
[1738188280113,0.08575233,103830.0,103810.0,0.98290848]
[1738188280412,0.14280206,103850.0,103840.0,0.192613]
[1738188280619,0.14280206,103850.0,103840.0,1.22122135]
[1738188280919,0.14280206,103850.0,103840.0,1.41182135]
[1738188281417,6e-08,103850.0,103840.0,1.41182135]
[1738188281622,6e-08,103850.0,103840.0,1.5188297]
[1738188282211,0.17040625,103860.0,103840.0,1.3262167]
[1738188282519,0.17040625,103860.0,103850.0,0.7674117]
[1738188282816,0.17040625,103860.0,103850.0,0.9574117]
[1738188283019,0.11404285,103870.0,103860.0,0.192576]
[1738188283208,0.11404285,103870.0,103860.0,0.7973927]
[1738188283819,0.11404285,103870.0,103860.0,0.69038435]
[1738188284008,0.30660085,103870.0,103860.0,0.222576]
[1738188284917,0.66740085,103870.0,103860.0,0.03]
[1738188285118,0.4136092,103870.0,103860.0,0.03]
[1738188285314,0.30660085,103870.0,103860.0,0.03]
[1738188285516,0.30660085,103870.0,103860.0,0.031]
[1738188285712,0.66740085,103870.0,103860.0,0.031]
[1738188286022,0.192558,103870.0,103860.0,0.031]
[1738188286219,0.66036635,103870.0,103860.0,0.031]
[1738188286525,0.553358,103870.0,103860.0,0.031]
[1738188287022,0.192576,103860.0,103850.0,0.00014468]
[1738188287223,0.66038435,103860.0,103850.0,0.00014468]
[1738188287421,0.553376,103860.0,103850.0,0.00014468]
[1738188287722,0.66038435,103860.0,103850.0,0.00014468]
[1738188288421,0.553376,103860.0,103850.0,0.00014468]
[1738188288817,0.554376,103860.0,103850.0,0.00014468]
[1738188290026,0.66138435,103860.0,103850.0,0.00014468]
[1738188290216,0.72248435,103860.0,103850.0,0.00014468]
[1738188292628,0.192632,103830.0,103820.0,0.29965035]
[1738188292925,0.192632,103830.0,103820.0,0.34965035]
[1738188293318,0.192632,103830.0,103820.0,0.71045035]
[1738188293923,0.66044035,103830.0,103820.0,0.05]
[1738188294127,0.19265,103820.0,103810.0,0.47399286]
[1738188294427,0.25595,103820.0,103810.0,0.48399286]
[1738188295227,0.25595,103820.0,103810.0,0.31126253]
[1738188295531,0.25595,103820.0,103810.0,0.21425418]
[1738188295714,0.37995,103820.0,103810.0,0.02158918]
[1738188296727,0.37995,103820.0,103810.0,0.02058918]
[1738188297627,0.37995,103820.0,103810.0,0.01758918]
[1738188298129,0.37995,103820.0,103810.0,0.01358918]
[1738188298314,0.37995,103820.0,103810.0,0.02058918]
[1738188298722,0.37995,103820.0,103810.0,0.02158918]
[1738188300336,0.74075,103820.0,103810.0,0.02158918]
[1738188300720,0.37995,103820.0,103810.0,0.02158918]
[1738188301519,0.74075,103820.0,103810.0,0.02158918]
[1738188301732,0.84775835,103820.0,103810.0,0.02158918]
[1738188301927,0.84775835,103820.0,103810.0,0.01158918]
[1738188302623,0.84775835,103820.0,103810.0,0.01014468]
[1738188302825,0.84775835,103820.0,103810.0,0.00314468]
[1738188303123,0.84775835,103820.0,103810.0,0.00014468]
[1738188303331,0.84875835,103820.0,103810.0,0.00014468]
[1738188303931,0.86126063,103820.0,103810.0,0.00014468]
[1738188304132,0.97530348,103820.0,103810.0,0.00014468]
[1738188304326,0.19271949,103810.0,103800.0,0.192687]
[1738188304525,0.19271949,103810.0,103800.0,0.202687]
[1738188305127,0.19271949,103810.0,103800.0,0.01]
[1738188305631,0.19271949,103810.0,103800.0,0.013]
[1738188305833,0.19271949,103810.0,103800.0,0.02]
[1738188306735,0.19271949,103810.0,103800.0,0.212687]
[1738188307631,0.19271949,103810.0,103800.0,0.209687]
[1738188308329,0.19271949,103810.0,103800.0,0.31569535]
[1738188308529,0.19271949,103810.0,103800.0,0.31169535]
[1738188308724,0.19271949,103810.0,103800.0,0.31869535]
[1738188308931,0.19271949,103810.0,103800.0,0.31669535]
[1738188309239,0.19271949,103810.0,103800.0,0.31969535]
[1738188309438,0.19271949,103810.0,103800.0,0.212687]
[1738188309929,0.19271949,103810.0,103800.0,0.02]
[1738188310737,0.19271949,103810.0,103800.0,0.212687]
[1738188315643,0.19271949,103810.0,103800.0,0.274287]
[1738188320443,0.30676234,103810.0,103800.0,0.274287]
[1738188325544,0.44196106,103810.0,103800.0,0.02]
[1738188325749,0.192687,103800.0,103790.0,0.00014468]
[1738188326046,0.192706,103790.0,103780.0,0.17273033]
[1738188326243,0.71527435,103790.0,103780.0,0.17273033]
[1738188326747,0.608266,103790.0,103780.0,0.17273033]
[1738188327340,0.608266,103790.0,103780.0,0.18173033]
[1738188327540,0.71527435,103790.0,103780.0,0.18173033]
[1738188327748,0.608266,103790.0,103780.0,0.18173033]
[1738188328050,0.71527435,103790.0,103780.0,0.18173033]
[1738188328240,0.71527435,103790.0,103780.0,0.17273033]
[1738188328441,0.71527435,103790.0,103780.0,0.18173033]
[1738188328650,0.71527435,103790.0,103780.0,0.18973033]
[1738188329450,0.35447435,103790.0,103780.0,0.18973033]
[1738188329947,0.71527435,103790.0,103780.0,0.18973033]
[1738188330252,0.88596733,103790.0,103780.0,0.017]
[1738188331241,0.898257,103790.0,103780.0,0.017]
[1738188332446,0.705551,103790.0,103770.0,0.33014468]
[1738188332652,0.79203335,103780.0,103770.0,0.33014468]
[1738188333854,0.79303335,103780.0,103770.0,0.33914468]
[1738188334352,0.79203335,103780.0,103770.0,0.33014468]
[1738188334546,0.80103335,103780.0,103770.0,0.33114468]
[1738188335150,0.80103335,103780.0,103770.0,0.33914468]
[1738188335552,0.86823335,103780.0,103770.0,0.33914468]
[1738188335948,0.86823335,103780.0,103770.0,0.33114468]
[1738188336146,0.7875167,103780.0,103740.0,0.40333046]
[1738188336449,0.55358,103750.0,103740.0,0.40333046]
[1738188336651,0.19278,103750.0,103740.0,0.40333046]
[1738188337153,0.19278,103750.0,103730.0,0.86812035]
[1738188337357,0.71595303,103760.0,103730.0,0.93826503]
[1738188337648,0.71595303,103760.0,103740.0,0.005]
[1738188337649,0.193794,103750.0,103740.0,0.005]
[1738188337853,0.193794,103750.0,103740.0,0.006]
[1738188338253,0.554594,103750.0,103740.0,0.006]
[1738188338458,0.193794,103750.0,103740.0,0.005]
[1738188338757,0.192799,103740.0,103730.0,0.87726503]
[1738188338959,0.192799,103740.0,103730.0,0.90945939]
[1738188339354,0.192799,103740.0,103730.0,0.90545939]
[1738188340642,0.192799,103740.0,103730.0,0.90045939]
[1738188341153,0.193799,103740.0,103730.0,0.90845939]
[1738188341350,0.193799,103740.0,103730.0,0.91745939]
[1738188341351,0.194799,103740.0,103730.0,0.91745939]
[1738188342658,0.194799,103740.0,103730.0,0.55665939]
[1738188344061,0.194799,103740.0,103730.0,0.91745939]
[1738188344243,0.194799,103740.0,103730.0,0.55665939]
[1738188344955,0.30180735,103740.0,103730.0,0.18094468]
[1738188345654,0.30180735,103740.0,103730.0,0.37376168]
[1738188346154,0.66260735,103740.0,103730.0,0.04714468]
[1738188346356,0.192817,103730.0,103720.0,0.0014461]
[1738188346654,0.71506535,103730.0,103720.0,0.0014461]
[1738188347448,0.71606535,103730.0,103720.0,0.0104461]
[1738188347854,0.71706535,103730.0,103720.0,0.0194461]
[1738188348458,0.76426935,103730.0,103720.0,0.003]
[1738188348753,0.192836,103720.0,103710.0,0.00014468]
[1738188349053,0.66064435,103720.0,103710.0,0.00014468]
[1738188350058,0.66164435,103720.0,103710.0,0.00014468]
[1738188352156,0.79314435,103720.0,103710.0,0.00014468]
[1738188355455,0.192855,103710.0,103700.0,0.1]
[1738188355654,0.8344717,103710.0,103700.0,0.1]
[1738188355856,0.72746335,103710.0,103700.0,0.1]
[1738188356551,0.72846335,103710.0,103700.0,0.105]
[1738188356760,0.8354717,103710.0,103700.0,0.105]
[1738188357353,0.6436167,103710.0,103670.0,0.0014468]
[1738188357557,0.66071835,103680.0,103670.0,0.1514468]
[1738188357758,0.66071835,103680.0,103670.0,0.0014468]
[1738188359461,0.7677267,103680.0,103670.0,0.0014468]
[1738188359768,0.192929,103670.0,103650.0,0.91519033]
[1738188359970,0.192948,103660.0,103650.0,0.91519033]
[1738188360465,0.192948,103660.0,103650.0,0.56439033]
[1738188361370,0.193948,103660.0,103650.0,0.56439033]
[1738188363367,0.194948,103660.0,103650.0,0.56439033]
[1738188363665,0.20685845,103660.0,103650.0,0.55439033]
[1738188363861,0.20585845,103660.0,103650.0,0.55439033]
[1738188364062,0.20685845,103660.0,103650.0,0.38166]
[1738188364265,0.3138668,103660.0,103650.0,0.1887]